[Event "Titled Tuesday Blitz June 29 2021"]
[White "Matols"]
[Black "SilviusTiberius"]
[WhiteElo "2343"]
[BlackElo "2498"]
[Result "0-1"]
[Round "07"]
[TimeControl "180+1"]
[Date "2021.06.29"]
[WhiteClock "0:00:03"]
[BlackClock "0:00:12"]

1. d4 {[%clk 0:03:00]}  Nf6 {[%clk 0:02:58]} 2. c4 {[%clk 0:03:00]}  e6 {[%clk 0:02:58]} 3. g3 {[%clk 0:03:00]}  d5 {[%clk 0:02:59]} 4. Nf3 {[%clk 0:03:00]}  Be7 {[%clk 0:02:59]} 5. Bg2 {[%clk 0:03:00]}  O-O {[%clk 0:03:00]} 6. O-O {[%clk 0:03:00]}  dxc4 {[%clk 0:03:00]} 7. Qc2 {[%clk 0:03:00]}  a6 {[%clk 0:03:00]} 8. a4 {[%clk 0:03:00]}  Bd7 {[%clk 0:03:01]} 9. Qxc4 {[%clk 0:03:00]}  Bc6 {[%clk 0:03:01]} 10. Bf4 {[%clk 0:03:00]}  Bd6 {[%clk 0:03:00]} 11. Ne5 {[%clk 0:02:53]}  Bxg2 {[%clk 0:02:55]} 12. Kxg2 {[%clk 0:02:52]}  Nbd7 {[%clk 0:02:40]} 13. Nc3 {[%clk 0:02:48]}  Nb6 {[%clk 0:02:34]} 14. Qd3 {[%clk 0:02:44]}  Nbd5 {[%clk 0:02:33]} 15. Bd2 {[%clk 0:02:32]}  Bxe5 {[%clk 0:02:21]} 16. dxe5 {[%clk 0:02:31]}  Nxc3 {[%clk 0:02:21]} 17. bxc3 {[%clk 0:01:51]}  Nd7 {[%clk 0:01:55]} 18. Qe3 {[%clk 0:01:32]}  Nb6 {[%clk 0:01:46]} 19. Rfd1 {[%clk 0:01:29]}  Nc4 {[%clk 0:01:33]} 20. Qf4 {[%clk 0:01:28]}  Qd5+ {[%clk 0:01:29]} 21. f3 {[%clk 0:01:25]}  Nxe5 {[%clk 0:01:11]} 22. Be3 {[%clk 0:01:19]}  Qa5 {[%clk 0:00:58]} 23. Bd4 {[%clk 0:01:14]}  Ng6 {[%clk 0:00:56]} 24. Qg4 {[%clk 0:01:11]}  e5 {[%clk 0:00:43]} 25. Qh5 {[%clk 0:01:02]}  f5 {[%clk 0:00:38]} 26. Bf2 {[%clk 0:00:57]}  Rf7 {[%clk 0:00:38]} 27. c4 {[%clk 0:00:43]}  Re8 {[%clk 0:00:28]} 28. h4 {[%clk 0:00:37]}  e4 {[%clk 0:00:25]} 29. fxe4 {[%clk 0:00:24]}  Rxe4 {[%clk 0:00:24]} 30. Rd8+ {[%clk 0:00:23]}  Rf8 {[%clk 0:00:24]} 31. Rad1 {[%clk 0:00:19]}  Qe5 {[%clk 0:00:20]} 32. Rxf8+ {[%clk 0:00:17]}  Nxf8 {[%clk 0:00:20]} 33. Rd8 {[%clk 0:00:16]}  Rxe2 {[%clk 0:00:19]} 34. Qf3 {[%clk 0:00:12]}  Qe4 {[%clk 0:00:16]} 35. Qxe4 {[%clk 0:00:10]}  fxe4 {[%clk 0:00:16]} 36. Kf1 {[%clk 0:00:10]}  Rxf2+ {[%clk 0:00:10]} 37. Kxf2 {[%clk 0:00:10]}  Kf7 {[%clk 0:00:11]} 38. Ke3 {[%clk 0:00:09]}  Ne6 {[%clk 0:00:12]} 39. Rd7+ {[%clk 0:00:09]}  Ke8 {[%clk 0:00:11]} 40. Rd1 {[%clk 0:00:08]}  Nc5 {[%clk 0:00:12]} 41. Rd5 {[%clk 0:00:07]}  b6 {[%clk 0:00:11]} 42. a5 {[%clk 0:00:06]}  Ke7 {[%clk 0:00:11]} 43. Kd4 {[%clk 0:00:05]}  Nb3+ {[%clk 0:00:10]} 44. Kxe4 {[%clk 0:00:03]}  Nxa5 {[%clk 0:00:10]} 45. Kd3 {[%clk 0:00:02]}  Nc6 {[%clk 0:00:10]} 46. c5 {[%clk 0:00:01]}  Nb4+ {[%clk 0:00:10]} 47. Kc4 {[%clk 0:00:02]}  Nxd5 {[%clk 0:00:11]} 48. Kxd5 {[%clk 0:00:02]}  bxc5 {[%clk 0:00:12]} 49. Kxc5 {[%clk 0:00:03]}  a5 {[%clk 0:00:12]} 0-1


[Site "https://www.chess.com"]

[Event "Titled Tuesday Blitz June 29 2021"]
[White "MattyDPerrine"]
[Black "SaraBlackPanther"]
[WhiteElo "2545"]
[BlackElo "2692"]
[Result "1/2-1/2"]
[Round "07"]
[TimeControl "180+1"]
[Date "2021.06.29"]
[WhiteClock "0:00:03"]
[BlackClock "0:01:01"]

1. Nf3 {[%clk 0:03:00]}  Nf6 {[%clk 0:02:59]} 2. g3 {[%clk 0:03:00]}  g6 {[%clk 0:02:59]} 3. b3 {[%clk 0:03:00]}  Bg7 {[%clk 0:03:00]} 4. Bb2 {[%clk 0:03:01]}  O-O {[%clk 0:03:00]} 5. Bg2 {[%clk 0:03:01]}  d5 {[%clk 0:02:58]} 6. c4 {[%clk 0:03:01]}  c5 {[%clk 0:02:57]} 7. cxd5 {[%clk 0:02:59]}  Nxd5 {[%clk 0:02:57]} 8. Bxg7 {[%clk 0:02:59]}  Kxg7 {[%clk 0:02:58]} 9. O-O {[%clk 0:02:58]}  Nc6 {[%clk 0:02:50]} 10. d4 {[%clk 0:02:59]}  cxd4 {[%clk 0:02:49]} 11. Nxd4 {[%clk 0:02:59]}  Nxd4 {[%clk 0:02:49]} 12. Qxd4+ {[%clk 0:03:00]}  Nf6 {[%clk 0:02:49]} 13. Qe5 {[%clk 0:03:01]}  Qd6 {[%clk 0:02:47]} 14. Qxd6 {[%clk 0:02:56]}  exd6 {[%clk 0:02:48]} 15. Nc3 {[%clk 0:02:56]}  Re8 {[%clk 0:02:49]} 16. Rfd1 {[%clk 0:02:56]}  Bg4 {[%clk 0:02:45]} 17. Bxb7 {[%clk 0:02:46]}  Rad8 {[%clk 0:02:40]} 18. f3 {[%clk 0:02:29]}  Be6 {[%clk 0:02:30]} 19. e4 {[%clk 0:02:08]}  Re7 {[%clk 0:02:26]} 20. Bd5 {[%clk 0:01:46]}  Rc8 {[%clk 0:02:16]} 21. Bxe6 {[%clk 0:01:29]}  fxe6 {[%clk 0:02:12]} 22. Rd3 {[%clk 0:01:07]}  Rec7 {[%clk 0:02:02]} 23. Ne2 {[%clk 0:01:02]}  d5 {[%clk 0:01:56]} 24. exd5 {[%clk 0:00:38]}  exd5 {[%clk 0:01:57]} 25. Rad1 {[%clk 0:00:37]}  Rc2 {[%clk 0:01:54]} 26. R1d2 {[%clk 0:00:35]}  Kf7 {[%clk 0:01:50]} 27. Nf4 {[%clk 0:00:31]}  Rxd2 {[%clk 0:01:45]} 28. Rxd2 {[%clk 0:00:32]}  Rc1+ {[%clk 0:01:44]} 29. Kf2 {[%clk 0:00:31]}  Ra1 {[%clk 0:01:43]} 30. Ke3 {[%clk 0:00:28]}  h5 {[%clk 0:01:33]} 31. Kd4 {[%clk 0:00:23]}  Rf1 {[%clk 0:01:28]} 32. Nxd5 {[%clk 0:00:20]}  Rxf3 {[%clk 0:01:28]} 33. Nxf6 {[%clk 0:00:16]}  Kxf6 {[%clk 0:01:29]} 34. Kc5 {[%clk 0:00:15]}  Kg5 {[%clk 0:01:24]} 35. Kc6 {[%clk 0:00:13]}  h4 {[%clk 0:01:16]} 36. gxh4+ {[%clk 0:00:11]}  Kxh4 {[%clk 0:01:17]} 37. Kb7 {[%clk 0:00:11]}  Rf7+ {[%clk 0:01:17]} 38. Ka6 {[%clk 0:00:12]}  Kh3 {[%clk 0:01:16]} 39. b4 {[%clk 0:00:11]}  g5 {[%clk 0:01:16]} 40. b5 {[%clk 0:00:10]}  g4 {[%clk 0:01:15]} 41. a4 {[%clk 0:00:09]}  Rf4 {[%clk 0:01:11]} 42. a5 {[%clk 0:00:09]}  Ra4 {[%clk 0:01:10]} 43. b6 {[%clk 0:00:08]}  axb6 {[%clk 0:01:10]} 44. Kxb6 {[%clk 0:00:09]}  Rb4+ {[%clk 0:01:09]} 45. Kc5 {[%clk 0:00:09]}  Ra4 {[%clk 0:01:09]} 46. Kb5 {[%clk 0:00:09]}  Ra1 {[%clk 0:01:09]} 47. Rb2 {[%clk 0:00:09]}  Ra3 {[%clk 0:01:03]} 48. a6 {[%clk 0:00:09]}  Rf3 {[%clk 0:01:02]} 49. a7 {[%clk 0:00:08]}  Rf8 {[%clk 0:01:01]} 50. Ka6 {[%clk 0:00:08]}  Rf6+ {[%clk 0:00:59]} 51. Rb6 {[%clk 0:00:06]}  Rf1 {[%clk 0:00:59]} 52. a8=Q {[%clk 0:00:05]}  Ra1+ {[%clk 0:00:59]} 53. Kb7 {[%clk 0:00:06]}  Rxa8 {[%clk 0:00:59]} 54. Kxa8 {[%clk 0:00:07]}  Kxh2 {[%clk 0:00:59]} 55. Kb7 {[%clk 0:00:07]}  g3 {[%clk 0:01:00]} 56. Rh6+ {[%clk 0:00:06]}  Kg1 {[%clk 0:00:59]} 57. Kc6 {[%clk 0:00:06]}  g2 {[%clk 0:01:00]} 58. Kd5 {[%clk 0:00:05]}  Kf2 {[%clk 0:01:01]} 59. Rf6+ {[%clk 0:00:05]}  Kg3 {[%clk 0:01:01]} 60. Rg6+ {[%clk 0:00:05]}  Kh2 {[%clk 0:01:01]} 61. Rxg2+ {[%clk 0:00:03]}  Kxg2 {[%clk 0:01:01]} 1/2-1/2


[Site "https://www.chess.com"]

[Event "Titled Tuesday Blitz June 29 2021"]
[White "Meri-Arabidze"]
[Black "GM_Crest"]
[WhiteElo "2648"]
[BlackElo "2796"]
[Result "0-1"]
[Round "07"]
[TimeControl "180+1"]
[Date "2021.06.29"]
[WhiteClock "0:00:03"]
[BlackClock "0:01:01"]

1. d4 {[%clk 0:02:57]}  d5 {[%clk 0:02:59]} 2. Nf3 {[%clk 0:02:57]}  e6 {[%clk 0:02:58]} 3. c4 {[%clk 0:02:58]}  c5 {[%clk 0:02:58]} 4. e3 {[%clk 0:02:57]}  Nf6 {[%clk 0:02:57]} 5. Nc3 {[%clk 0:02:57]}  cxd4 {[%clk 0:02:57]} 6. exd4 {[%clk 0:02:56]}  Be7 {[%clk 0:02:57]} 7. Bd3 {[%clk 0:02:54]}  dxc4 {[%clk 0:02:56]} 8. Bxc4 {[%clk 0:02:55]}  O-O {[%clk 0:02:56]} 9. O-O {[%clk 0:02:56]}  a6 {[%clk 0:02:57]} 10. Qe2 {[%clk 0:02:54]}  b5 {[%clk 0:02:57]} 11. Bb3 {[%clk 0:02:54]}  Bb7 {[%clk 0:02:57]} 12. Bg5 {[%clk 0:02:54]}  Nc6 {[%clk 0:02:47]} 13. Rad1 {[%clk 0:02:53]}  Nb4 {[%clk 0:02:47]} 14. d5 {[%clk 0:02:35]}  Nbxd5 {[%clk 0:02:46]} 15. Nxd5 {[%clk 0:02:30]}  Bxd5 {[%clk 0:02:43]} 16. Bxd5 {[%clk 0:02:30]}  exd5 {[%clk 0:02:41]} 17. Nd4 {[%clk 0:02:29]}  Qd7 {[%clk 0:02:39]} 18. Rfe1 {[%clk 0:02:17]}  Rfe8 {[%clk 0:02:38]} 19. Qf3 {[%clk 0:02:15]}  h6 {[%clk 0:02:19]} 20. Bh4 {[%clk 0:02:06]}  Ne4 {[%clk 0:02:08]} 21. Bxe7 {[%clk 0:02:04]}  Rxe7 {[%clk 0:02:08]} 22. Nf5 {[%clk 0:02:00]}  Re5 {[%clk 0:02:08]} 23. g4 {[%clk 0:01:24]}  Rae8 {[%clk 0:02:04]} 24. Qf4 {[%clk 0:01:15]}  Qe6 {[%clk 0:02:02]} 25. Kg2 {[%clk 0:00:54]}  h5 {[%clk 0:01:51]} 26. f3 {[%clk 0:00:52]}  Nf6 {[%clk 0:01:38]} 27. Rxe5 {[%clk 0:00:52]}  Qxe5 {[%clk 0:01:38]} 28. Qxe5 {[%clk 0:00:28]}  Rxe5 {[%clk 0:01:36]} 29. Kg3 {[%clk 0:00:29]}  hxg4 {[%clk 0:01:34]} 30. fxg4 {[%clk 0:00:30]}  Re2 {[%clk 0:01:33]} 31. g5 {[%clk 0:00:22]}  Ne4+ {[%clk 0:01:32]} 32. Kf4 {[%clk 0:00:23]}  Rf2+ {[%clk 0:01:29]} 33. Ke5 {[%clk 0:00:23]}  Nxg5 {[%clk 0:01:27]} 34. Rxd5 {[%clk 0:00:12]}  Rxb2 {[%clk 0:01:26]} 35. Rd8+ {[%clk 0:00:09]}  Kh7 {[%clk 0:01:25]} 36. Nd6 {[%clk 0:00:09]}  Re2+ {[%clk 0:01:24]} 37. Kf5 {[%clk 0:00:08]}  f6 {[%clk 0:01:18]} 38. h4 {[%clk 0:00:08]}  Re5+ {[%clk 0:01:18]} 39. Kg4 {[%clk 0:00:07]}  Ne6 {[%clk 0:01:18]} 40. Ra8 {[%clk 0:00:06]}  Nc5 {[%clk 0:01:13]} 41. h5 {[%clk 0:00:04]}  Re7 {[%clk 0:01:06]} 42. Nf5 {[%clk 0:00:04]}  Rd7 {[%clk 0:01:06]} 43. Nh4 {[%clk 0:00:03]}  Nd3 {[%clk 0:01:05]} 44. Kf5 {[%clk 0:00:02]}  Rd5+ {[%clk 0:01:03]} 45. Kg4 {[%clk 0:00:02]}  Ne5+ {[%clk 0:01:02]} 46. Kh3 {[%clk 0:00:01]}  Nf7 {[%clk 0:01:02]} 47. Ng6 {[%clk 0:00:01]}  Rxh5+ {[%clk 0:01:01]} 48. Nh4 {[%clk 0:00:02]}  g5 {[%clk 0:01:01]} 49. Kg4 {[%clk 0:00:02]}  Rxh4+ {[%clk 0:01:01]} 50. Kf5 {[%clk 0:00:03]}  Rf4+ {[%clk 0:01:01]} 0-1


[Site "https://www.chess.com"]

[Event "Titled Tuesday Blitz June 29 2021"]
[White "N4700000"]
[Black "rychessmaster1"]
[WhiteElo "2370"]
[BlackElo "2541"]
[Result "1-0"]
[Round "07"]
[TimeControl "180+1"]
[Date "2021.06.29"]
[WhiteClock "0:00:13"]
[BlackClock "0:00:06"]

1. e4 {[%clk 0:02:46]}  c6 {[%clk 0:03:00]} 2. Nf3 {[%clk 0:02:44]}  d5 {[%clk 0:03:00]} 3. d3 {[%clk 0:02:45]}  Bg4 {[%clk 0:03:00]} 4. Nbd2 {[%clk 0:02:44]}  e6 {[%clk 0:02:59]} 5. h3 {[%clk 0:02:44]}  Bh5 {[%clk 0:02:59]} 6. g4 {[%clk 0:02:43]}  Bg6 {[%clk 0:03:00]} 7. Bg2 {[%clk 0:02:43]}  Nd7 {[%clk 0:02:57]} 8. Qe2 {[%clk 0:02:32]}  Bd6 {[%clk 0:02:25]} 9. h4 {[%clk 0:02:17]}  h6 {[%clk 0:02:23]} 10. e5 {[%clk 0:02:06]}  Bc5 {[%clk 0:02:23]} 11. h5 {[%clk 0:02:04]}  Bh7 {[%clk 0:02:23]} 12. Nb3 {[%clk 0:01:58]}  Bb6 {[%clk 0:02:20]} 13. d4 {[%clk 0:01:49]}  c5 {[%clk 0:02:00]} 14. dxc5 {[%clk 0:01:45]}  Bxc5 {[%clk 0:02:01]} 15. Nxc5 {[%clk 0:01:36]}  Qa5+ {[%clk 0:02:01]} 16. c3 {[%clk 0:01:30]}  Qxc5 {[%clk 0:02:00]} 17. O-O {[%clk 0:01:22]}  Ne7 {[%clk 0:01:54]} 18. Be3 {[%clk 0:01:19]}  Qc7 {[%clk 0:01:52]} 19. Bd4 {[%clk 0:01:18]}  Nc6 {[%clk 0:01:40]} 20. Rfe1 {[%clk 0:01:12]}  Be4 {[%clk 0:01:31]} 21. Nh4 {[%clk 0:01:03]}  Bxg2 {[%clk 0:01:32]} 22. Kxg2 {[%clk 0:01:00]}  O-O {[%clk 0:01:10]} 23. f4 {[%clk 0:00:56]}  Rae8 {[%clk 0:01:03]} 24. g5 {[%clk 0:00:46]}  hxg5 {[%clk 0:00:45]} 25. fxg5 {[%clk 0:00:45]}  Qd8 {[%clk 0:00:41]} 26. Qg4 {[%clk 0:00:43]}  Qe7 {[%clk 0:00:23]} 27. Kh3 {[%clk 0:00:41]}  Rc8 {[%clk 0:00:21]} 28. Re2 {[%clk 0:00:39]}  Nxd4 {[%clk 0:00:18]} 29. cxd4 {[%clk 0:00:38]}  Rc4 {[%clk 0:00:19]} 30. Rf1 {[%clk 0:00:33]}  Qb4 {[%clk 0:00:14]} 31. Rf4 {[%clk 0:00:23]}  Nb8 {[%clk 0:00:12]} 32. g6 {[%clk 0:00:22]}  Qe7 {[%clk 0:00:09]} 33. Ref2 {[%clk 0:00:19]}  f6 {[%clk 0:00:04]} 34. exf6 {[%clk 0:00:18]}  Rxf6 {[%clk 0:00:05]} 35. Rxf6 {[%clk 0:00:16]}  gxf6 {[%clk 0:00:05]} 36. h6 {[%clk 0:00:16]}  Nd7 {[%clk 0:00:06]} 37. g7 {[%clk 0:00:15]}  Qf7 {[%clk 0:00:04]} 38. Qg6 {[%clk 0:00:14]}  Qxg6 {[%clk 0:00:04]} 39. Nxg6 {[%clk 0:00:15]}  Rxd4 {[%clk 0:00:04]} 40. Ne7+ {[%clk 0:00:15]}  Kf7 {[%clk 0:00:05]} 41. g8=Q+ {[%clk 0:00:16]}  Kxe7 {[%clk 0:00:06]} 42. Qg7+ {[%clk 0:00:16]}  Kd6 {[%clk 0:00:06]} 43. Qg3+ {[%clk 0:00:15]}  e5 {[%clk 0:00:06]} 44. h7 {[%clk 0:00:15]}  f5 {[%clk 0:00:04]} 45. h8=Q {[%clk 0:00:15]}  f4 {[%clk 0:00:05]} 46. Qh6+ {[%clk 0:00:15]}  Kc7 {[%clk 0:00:05]} 47. Qgg6 {[%clk 0:00:14]}  Rd3+ {[%clk 0:00:05]} 48. Kh2 {[%clk 0:00:13]}  Rg3 {[%clk 0:00:06]} 49. Qd6+ {[%clk 0:00:13]} 1-0


[Site "https://www.chess.com"]

[Event "Titled Tuesday Blitz June 29 2021"]
[White "Neftegor"]
[Black "EddieUrquhart"]
[WhiteElo "2542"]
[BlackElo "2380"]
[Result "1-0"]
[Round "07"]
[TimeControl "180+1"]
[Date "2021.06.29"]
[WhiteClock "0:00:47"]
[BlackClock "0:00:07"]

1. d4 {[%clk 0:03:00]}  Nf6 {[%clk 0:02:59]} 2. c4 {[%clk 0:03:00]}  e6 {[%clk 0:02:59]} 3. Nf3 {[%clk 0:02:58]}  Nc6 {[%clk 0:02:57]} 4. g3 {[%clk 0:02:57]}  Bb4+ {[%clk 0:02:57]} 5. Nbd2 {[%clk 0:02:54]}  a5 {[%clk 0:02:57]} 6. Bg2 {[%clk 0:02:54]}  O-O {[%clk 0:02:57]} 7. O-O {[%clk 0:02:54]}  Bxd2 {[%clk 0:02:57]} 8. Bxd2 {[%clk 0:02:52]}  d6 {[%clk 0:02:58]} 9. Qc2 {[%clk 0:02:52]}  Qe7 {[%clk 0:02:57]} 10. e4 {[%clk 0:02:51]}  e5 {[%clk 0:02:57]} 11. d5 {[%clk 0:02:51]}  Nb4 {[%clk 0:02:48]} 12. Qb1 {[%clk 0:02:45]}  b6 {[%clk 0:02:46]} 13. a3 {[%clk 0:02:41]}  Na6 {[%clk 0:02:46]} 14. b4 {[%clk 0:02:41]}  Ne8 {[%clk 0:02:11]} 15. Re1 {[%clk 0:02:33]}  f5 {[%clk 0:02:08]} 16. exf5 {[%clk 0:02:20]}  Bxf5 {[%clk 0:02:08]} 17. Qb3 {[%clk 0:02:19]}  Nf6 {[%clk 0:02:05]} 18. Nd4 {[%clk 0:02:14]}  Bd7 {[%clk 0:02:03]} 19. Nc6 {[%clk 0:02:14]}  Bxc6 {[%clk 0:02:02]} 20. dxc6 {[%clk 0:02:13]}  Kh8 {[%clk 0:01:54]} 21. h3 {[%clk 0:02:09]}  Qf7 {[%clk 0:01:50]} 22. Be3 {[%clk 0:02:08]}  b5 {[%clk 0:01:40]} 23. Rac1 {[%clk 0:02:07]}  bxc4 {[%clk 0:01:39]} 24. Rxc4 {[%clk 0:02:04]}  axb4 {[%clk 0:01:37]} 25. axb4 {[%clk 0:02:03]}  Rfb8 {[%clk 0:01:18]} 26. b5 {[%clk 0:01:54]}  Nc5 {[%clk 0:01:13]} 27. Bxc5 {[%clk 0:01:52]}  dxc5 {[%clk 0:01:13]} 28. Rxe5 {[%clk 0:01:49]}  Ra1+ {[%clk 0:01:01]} 29. Kh2 {[%clk 0:01:49]}  h6 {[%clk 0:00:34]} 30. Rexc5 {[%clk 0:01:15]}  Ng4+ {[%clk 0:00:20]} 31. hxg4 {[%clk 0:01:07]}  Qxf2 {[%clk 0:00:21]} 32. Rf5 {[%clk 0:00:50]}  Qg1+ {[%clk 0:00:18]} 33. Kh3 {[%clk 0:00:50]}  Re1 {[%clk 0:00:07]} 34. Rcf4 {[%clk 0:00:47]}  Re2 {[%clk 0:00:07]} 35. Qf3 {[%clk 0:00:47]} 1-0


[Site "https://www.chess.com"]

[Event "Titled Tuesday Blitz June 29 2021"]
[White "PavelShkapenko"]
[Black "Isajevsky_Anton"]
[WhiteElo "2677"]
[BlackElo "2522"]
[Result "1-0"]
[Round "07"]
[TimeControl "180+1"]
[Date "2021.06.29"]
[WhiteClock "0:02:21"]
[BlackClock "0:01:22"]

1. e4 {[%clk 0:03:00]}  c5 {[%clk 0:02:59]} 2. c3 {[%clk 0:03:00]}  Nf6 {[%clk 0:02:59]} 3. e5 {[%clk 0:03:00]}  Nd5 {[%clk 0:02:59]} 4. d4 {[%clk 0:03:01]}  cxd4 {[%clk 0:02:59]} 5. cxd4 {[%clk 0:03:02]}  e6 {[%clk 0:02:59]} 6. Nc3 {[%clk 0:03:02]}  d6 {[%clk 0:02:59]} 7. Nf3 {[%clk 0:03:01]}  Nxc3 {[%clk 0:02:59]} 8. bxc3 {[%clk 0:03:01]}  Qc7 {[%clk 0:02:58]} 9. Bd2 {[%clk 0:03:00]}  Nd7 {[%clk 0:02:58]} 10. Ng5 {[%clk 0:03:01]}  dxe5 {[%clk 0:02:47]} 11. Qh5 {[%clk 0:03:00]}  Nf6 {[%clk 0:02:44]} 12. Bb5+ {[%clk 0:02:59]}  Kd8 {[%clk 0:02:32]} 13. Qxf7 {[%clk 0:02:59]}  a6 {[%clk 0:01:36]} 14. Ba4 {[%clk 0:02:51]}  Bd6 {[%clk 0:01:22]} 15. Qxc7+ {[%clk 0:02:20]}  Kxc7 {[%clk 0:01:22]} 16. dxe5 {[%clk 0:02:21]} 1-0


[Site "https://www.chess.com"]

[Event "Titled Tuesday Blitz June 29 2021"]
[White "PowerThinking2650"]
[Black "elextranjero00"]
[WhiteElo "2407"]
[BlackElo "2606"]
[Result "1-0"]
[Round "07"]
[TimeControl "180+1"]
[Date "2021.06.29"]
[WhiteClock "0:00:31"]
[BlackClock "0:00:07"]

1. e4 {[%clk 0:03:00]}  c6 {[%clk 0:02:58]} 2. d4 {[%clk 0:03:00]}  d5 {[%clk 0:02:59]} 3. Nc3 {[%clk 0:03:01]}  dxe4 {[%clk 0:02:59]} 4. Nxe4 {[%clk 0:03:01]}  Nf6 {[%clk 0:02:59]} 5. Nxf6+ {[%clk 0:03:01]}  exf6 {[%clk 0:03:00]} 6. Bc4 {[%clk 0:03:01]}  Bd6 {[%clk 0:03:00]} 7. Qe2+ {[%clk 0:03:01]}  Qe7 {[%clk 0:03:00]} 8. Qxe7+ {[%clk 0:03:00]}  Kxe7 {[%clk 0:03:01]} 9. Ne2 {[%clk 0:03:00]}  Be6 {[%clk 0:03:02]} 10. Bb3 {[%clk 0:02:57]}  Nd7 {[%clk 0:02:53]} 11. Bf4 {[%clk 0:02:57]}  a5 {[%clk 0:02:50]} 12. Bxd6+ {[%clk 0:02:53]}  Kxd6 {[%clk 0:02:49]} 13. O-O-O {[%clk 0:02:47]}  Bxb3 {[%clk 0:02:35]} 14. axb3 {[%clk 0:02:43]}  f5 {[%clk 0:02:08]} 15. c4 {[%clk 0:02:35]}  a4 {[%clk 0:01:59]} 16. Kc2 {[%clk 0:02:19]}  axb3+ {[%clk 0:01:58]} 17. Kxb3 {[%clk 0:02:19]}  Nf6 {[%clk 0:01:54]} 18. Nc3 {[%clk 0:02:18]}  Rhe8 {[%clk 0:01:46]} 19. f3 {[%clk 0:02:13]}  Re3 {[%clk 0:01:26]} 20. Rhe1 {[%clk 0:02:08]}  Rae8 {[%clk 0:01:17]} 21. Rxe3 {[%clk 0:02:05]}  Rxe3 {[%clk 0:01:18]} 22. Kc2 {[%clk 0:01:57]}  h5 {[%clk 0:01:02]} 23. Kd2 {[%clk 0:01:57]}  Re8 {[%clk 0:01:02]} 24. Ra1 {[%clk 0:01:47]}  h4 {[%clk 0:00:58]} 25. Ra7 {[%clk 0:01:38]}  Kc7 {[%clk 0:00:58]} 26. Ra5 {[%clk 0:01:34]}  g6 {[%clk 0:00:56]} 27. Re5 {[%clk 0:01:34]}  Rxe5 {[%clk 0:00:33]} 28. dxe5 {[%clk 0:01:34]}  Nh5 {[%clk 0:00:32]} 29. Ke3 {[%clk 0:01:30]}  Ng7 {[%clk 0:00:28]} 30. f4 {[%clk 0:01:20]}  Ne6 {[%clk 0:00:26]} 31. Ne2 {[%clk 0:01:12]}  Kb6 {[%clk 0:00:23]} 32. b4 {[%clk 0:01:08]}  c5 {[%clk 0:00:21]} 33. b5 {[%clk 0:01:08]}  Ka5 {[%clk 0:00:22]} 34. Kd3 {[%clk 0:00:56]}  Kb4 {[%clk 0:00:22]} 35. g3 {[%clk 0:00:57]}  hxg3 {[%clk 0:00:18]} 36. hxg3 {[%clk 0:00:58]}  b6 {[%clk 0:00:09]} 37. Nc3 {[%clk 0:00:56]}  Nd4 {[%clk 0:00:09]} 38. Nd5+ {[%clk 0:00:54]}  Ka5 {[%clk 0:00:10]} 39. Nf6 {[%clk 0:00:38]}  Ne6 {[%clk 0:00:08]} 40. Ne8 {[%clk 0:00:36]}  g5 {[%clk 0:00:08]} 41. fxg5 {[%clk 0:00:33]}  Nxg5 {[%clk 0:00:09]} 42. Nd6 {[%clk 0:00:33]}  Nf3 {[%clk 0:00:07]} 43. Nxf7 {[%clk 0:00:31]}  Kb4 {[%clk 0:00:07]} 44. e6 {[%clk 0:00:31]} 1-0


[Site "https://www.chess.com"]

[Event "Titled Tuesday Blitz June 29 2021"]
[White "Ranindu2003"]
[Black "AnotherGrumpy"]
[WhiteElo "2707"]
[BlackElo "2572"]
[Result "0-1"]
[Round "07"]
[TimeControl "180+1"]
[Date "2021.06.29"]
[WhiteClock "0:00:16"]
[BlackClock "0:00:37"]

1. e4 {[%clk 0:03:00]}  c6 {[%clk 0:03:00]} 2. d4 {[%clk 0:03:00]}  d5 {[%clk 0:03:00]} 3. e5 {[%clk 0:03:00]}  Bf5 {[%clk 0:03:00]} 4. h4 {[%clk 0:03:01]}  h5 {[%clk 0:02:59]} 5. c4 {[%clk 0:03:00]}  e6 {[%clk 0:02:59]} 6. Nc3 {[%clk 0:02:59]}  Nd7 {[%clk 0:02:54]} 7. Nge2 {[%clk 0:02:58]}  Be7 {[%clk 0:02:47]} 8. Ng3 {[%clk 0:02:55]}  Bg6 {[%clk 0:02:46]} 9. cxd5 {[%clk 0:02:31]}  exd5 {[%clk 0:02:46]} 10. Bd3 {[%clk 0:02:25]}  Nf8 {[%clk 0:02:37]} 11. Bxg6 {[%clk 0:02:20]}  Nxg6 {[%clk 0:02:38]} 12. Nf5 {[%clk 0:02:20]}  Nxh4 {[%clk 0:02:34]} 13. Nxg7+ {[%clk 0:02:10]}  Kf8 {[%clk 0:02:34]} 14. Nxh5 {[%clk 0:02:10]}  Nxg2+ {[%clk 0:02:34]} 15. Kf1 {[%clk 0:02:10]}  Nh4 {[%clk 0:02:31]} 16. Qg4 {[%clk 0:02:09]}  Ng6 {[%clk 0:02:30]} 17. Be3 {[%clk 0:01:53]}  Qc8 {[%clk 0:02:28]} 18. Qf3 {[%clk 0:01:45]}  Nh4 {[%clk 0:02:18]} 19. Rxh4 {[%clk 0:01:37]}  Bxh4 {[%clk 0:02:19]} 20. Ke2 {[%clk 0:01:33]}  Ne7 {[%clk 0:01:49]} 21. Rh1 {[%clk 0:01:26]}  Ng6 {[%clk 0:01:44]} 22. Kf1 {[%clk 0:01:10]}  Be7 {[%clk 0:01:05]} 23. Ne2 {[%clk 0:01:04]}  Nh4 {[%clk 0:01:05]} 24. Rxh4 {[%clk 0:00:54]}  Bxh4 {[%clk 0:01:06]} 25. Nef4 {[%clk 0:00:54]}  Qf5 {[%clk 0:00:59]} 26. e6 {[%clk 0:00:36]}  Rxh5 {[%clk 0:00:57]} 27. exf7 {[%clk 0:00:26]}  Rh7 {[%clk 0:00:46]} 28. Qg2 {[%clk 0:00:22]}  Kxf7 {[%clk 0:00:46]} 29. Ke2 {[%clk 0:00:18]}  Re8 {[%clk 0:00:44]} 30. Kd2 {[%clk 0:00:17]}  Bg5 {[%clk 0:00:43]} 31. Qf3 {[%clk 0:00:15]}  Bxf4 {[%clk 0:00:42]} 32. Bxf4 {[%clk 0:00:16]}  Rh4 {[%clk 0:00:37]} 0-1


[Site "https://www.chess.com"]

[Event "Titled Tuesday Blitz June 29 2021"]
[White "RedbaronCanada"]
[Black "saraswathii"]
[WhiteElo "2541"]
[BlackElo "2375"]
[Result "0-1"]
[Round "07"]
[TimeControl "180+1"]
[Date "2021.06.29"]
[WhiteClock "0:02:13"]
[BlackClock "0:02:16"]

1. e4 {[%clk 0:03:00]}  c5 {[%clk 0:02:59]} 2. Ne2 {[%clk 0:02:58]}  e6 {[%clk 0:02:59]} 3. Nbc3 {[%clk 0:02:52]}  Nc6 {[%clk 0:02:58]} 4. d4 {[%clk 0:02:52]}  cxd4 {[%clk 0:02:57]} 5. Nxd4 {[%clk 0:02:53]}  Nf6 {[%clk 0:02:57]} 6. Ndb5 {[%clk 0:02:51]}  Bb4 {[%clk 0:02:55]} 7. a3 {[%clk 0:02:50]}  Bxc3+ {[%clk 0:02:55]} 8. Nxc3 {[%clk 0:02:51]}  d5 {[%clk 0:02:56]} 9. exd5 {[%clk 0:02:51]}  exd5 {[%clk 0:02:56]} 10. Bd3 {[%clk 0:02:51]}  d4 {[%clk 0:02:57]} 11. Ne2 {[%clk 0:02:51]}  O-O {[%clk 0:02:55]} 12. O-O {[%clk 0:02:51]}  Qd5 {[%clk 0:02:55]} 13. Nf4 {[%clk 0:02:50]}  Qd6 {[%clk 0:02:55]} 14. Re1 {[%clk 0:02:45]}  h6 {[%clk 0:02:53]} 15. Bd2 {[%clk 0:02:43]}  Rd8 {[%clk 0:02:49]} 16. Qf3 {[%clk 0:02:40]}  Ne5 {[%clk 0:02:47]} 17. Qg3 {[%clk 0:02:38]}  Nxd3 {[%clk 0:02:46]} 18. Nxd3 {[%clk 0:02:39]}  Qxg3 {[%clk 0:02:45]} 19. hxg3 {[%clk 0:02:40]}  Bf5 {[%clk 0:02:44]} 20. Re7 {[%clk 0:02:35]}  Rac8 {[%clk 0:02:43]} 21. Rc1 {[%clk 0:02:26]}  Rd7 {[%clk 0:02:35]} 22. Rxd7 {[%clk 0:02:24]}  Nxd7 {[%clk 0:02:36]} 23. f3 {[%clk 0:02:21]}  Bxd3 {[%clk 0:02:34]} 24. cxd3 {[%clk 0:02:22]}  Rxc1+ {[%clk 0:02:35]} 25. Bxc1 {[%clk 0:02:23]}  Nc5 {[%clk 0:02:34]} 26. Bd2 {[%clk 0:02:21]}  Nxd3 {[%clk 0:02:34]} 27. b4 {[%clk 0:02:22]}  Nb2 {[%clk 0:02:32]} 28. Kf1 {[%clk 0:02:18]}  Nc4 {[%clk 0:02:31]} 29. Bc1 {[%clk 0:02:18]}  d3 {[%clk 0:02:30]} 30. Ke1 {[%clk 0:02:19]}  Kf8 {[%clk 0:02:30]} 31. a4 {[%clk 0:02:19]}  Ke7 {[%clk 0:02:29]} 32. Bf4 {[%clk 0:02:19]}  Ke6 {[%clk 0:02:27]} 33. a5 {[%clk 0:02:18]}  a6 {[%clk 0:02:23]} 34. Bb8 {[%clk 0:02:18]}  Kd5 {[%clk 0:02:22]} 35. Kd1 {[%clk 0:02:17]}  Kd4 {[%clk 0:02:20]} 36. f4 {[%clk 0:02:13]}  Kc3 {[%clk 0:02:16]} 0-1


[Site "https://www.chess.com"]